Workbook

Sheet 化学工艺系-学硕
A1: 化学工程与环境学院2024级全日制硕士研究生复试成绩汇总暨拟录取名单统计表
A2: 复试小组名称： 化学工艺系（学术型）
A3: 序号 | B3: 考生编号 | C3: 姓名 | D3: 面试专业成绩 | E3: 面试英语成绩 | F3: 复试成绩 | G3: 初试成绩 | H3: 总成绩 | I3: 是否拟录取 | J3: 拟录取专业 | K3: 考生来源(推免/统考)
A4: 1 | B4: 114144137014473 | C4: 韩磊 | D4: 89.86 | E4: 90.17 | F4: 89.95 | G4: 399 | H4: 82.85 | I4: 是 | J4: 化学工程与技术 | K4: 统考
A5: 2 | B5: 114144151146269 | C5: 黄盼 | D5: 87.71 | E5: 91.00 | F5: 88.70 | G5: 391 | H5: 81.35 | I5: 是 | J5: 化学工程与技术 | K5: 统考
A6: 3 | B6: 114144146036055 | C6: 黄坤源 | D6: 90.14 | E6: 92.83 | F6: 90.95 | G6: 386 | H6: 81.33 | I6: 是 | J6: 化学工程与技术 | K6: 统考
A7: 4 | B7: 114144141325486 | C7: 宋淼鑫 | D7: 80.71 | E7: 90.00 | F7: 83.50 | G7: 396 | H7: 80.49 | I7: 是 | J7: 化学工程与技术 | K7: 统考
A8: 5 | B8: 114144113302844 | C8: 程奥飞 | D8: 84.86 | E8: 71.17 | F8: 80.75 | G8: 397 | H8: 79.81 | I8: 是 | J8: 化学工程与技术 | K8: 统考
A9: 6 | B9: 114144111642098 | C9: 杨丛庆 | D9: 80.86 | E9: 74.83 | F9: 79.05 | G9: 391 | H9: 78.46 | I9: 是 | J9: 化学工程与技术 | K9: 统考
A10: 7 | B10: 114144132113943 | C10: 张宇航 | D10: 83.43 | E10: 84.00 | F10: 83.60 | G10: 381 | H10: 78.42 | I10: 是 | J10: 化学工程与技术 | K10: 统考
A11: 8 | B11: 114144137034672 | C11: 王静 | D11: 82.00 | E11: 85.33 | F11: 83.00 | G11: 380 | H11: 78.10 | I11: 是 | J11: 化学工程与技术 | K11: 统考
A12: 9 | B12: 114144114053144 | C12: 王旭 | D12: 82.29 | E12: 73.83 | F12: 79.75 | G12: 385 | H12: 77.83 | I12: 是 | J12: 化学工程与技术 | K12: 统考
A13: 10 | B13: 114144111641866 | C13: 苗橦 | D13: 81.71 | E13: 88.83 | F13: 83.85 | G13: 369 | H13: 76.82 | I13: 是 | J13: 化学工程与技术 | K13: 统考
A14: 11 | B14: 114144111642102 | C14: 朱映之 | D14: 87.14 | E14: 90.50 | F14: 88.15 | G14: 357 | H14: 76.43 | I14: 是 | J14: 化学工程与技术 | K14: 统考
A15: 12 | B15: 114144111641358 | C15: 吴钦炀 | D15: 86.71 | E15: 86.50 | F15: 86.65 | G15: 359 | H15: 76.26 | I15: 是 | J15: 化学工程与技术 | K15: 统考
A16: 13 | B16: 114144137034662 | C16: 常怡琳 | D16: 80.43 | E16: 82.50 | F16: 81.05 | G16: 366 | H16: 75.56 | I16: 是 | J16: 化学工程与技术 | K16: 统考
A17: 14 | B17: 114144137034665 | C17: 李甜甜 | D17: 82.57 | E17: 83.00 | F17: 82.70 | G17: 357 | H17: 74.79 | I17: 是 | J17: 化学工程与技术 | K17: 统考
A18: 15 | B18: 114144111641367 | C18: 涂小宇 | D18: 85.14 | E18: 81.83 | F18: 84.15 | G18: 353 | H18: 74.67 | I18: 是 | J18: 化学工程与技术 | K18: 统考
A19: 16 | B19: 114144141345521 | C19: 牛梦然 | D19: 82.71 | E19: 83.50 | F19: 82.95 | G19: 353 | H19: 74.31 | I19: 是 | J19: 化学工程与技术 | K19: 统考
A20: 17 | B20: 114144165347479 | C20: 杨雨凡 | D20: 81.57 | E20: 81.83 | F20: 81.65 | G20: 355 | H20: 74.20 | I20: 是 | J20: 化学工程与技术 | K20: 统考
A21: 18 | B21: 114144111641873 | C21: 李佳岩 | D21: 86.29 | E21: 88.67 | F21: 87.00 | G21: 342 | H21: 73.98 | I21: 是 | J21: 化学工程与技术 | K21: 统考
A22: 19 | B22: 114144151146276 | C22: 姚瑶 | D22: 81.86 | E22: 83.17 | F22: 82.25 | G22: 352 | H22: 73.96 | I22: 是 | J22: 化学工程与技术 | K22: 统考
A23: 20 | B23: 114144151146275 | C23: 谢文婷 | D23: 87.00 | E23: 78.17 | F23: 84.35 | G23: 346 | H23: 73.75 | I23: 是 | J23: 化学工程与技术 | K23: 统考
A24: 21 | B24: 114144132204024 | C24: 柏毅 | D24: 83.29 | E24: 81.50 | F24: 82.75 | G24: 349 | H24: 73.69 | I24: 是 | J24: 化学工程与技术 | K24: 统考
A25: 22 | B25: 114144137155123 | C25: 张明慧 | D25: 80.00 | E25: 79.83 | F25: 79.95 | G25: 353 | H25: 73.41 | I25: 是 | J25: 化学工程与技术 | K25: 统考
A26: 23 | B26: 114144122073694 | C26: 陈禾 | D26: 84.71 | E26: 72.67 | F26: 81.10 | G26: 348 | H26: 73.05 | I26: 是 | J26: 化学工程与技术 | K26: 统考
A27: 24 | B27: 114144141205443 | C27: 黄志丹 | D27: 81.14 | E27: 85.00 | F27: 82.30 | G27: 345 | H27: 72.99 | I27: 是 | J27: 化学工程与技术 | K27: 统考
A28: 25 | B28: 114144113092652 | C28: 白亚鹏 | D28: 78.29 | E28: 77.33 | F28: 78.00 | G28: 353 | H28: 72.82 | I28: 是 | J28: 化学工程与技术 | K28: 统考
A29: 26 | B29: 114144137094954 | C29: 王赫 | D29: 82.71 | E29: 76.17 | F29: 80.75 | G29: 346 | H29: 72.67 | I29: 是 | J29: 化学工程与技术 | K29: 统考
A30: 27 | B30: 114144111641634 | C30: 吉鲁东 | D30: 80.43 | E30: 73.00 | F30: 78.20 | G30: 350 | H30: 72.46 | I30: 是 | J30: 化学工程与技术 | K30: 统考
A31: 28 | B31: 114144123103778 | C31: 刘琪 | D31: 82.57 | E31: 79.83 | F31: 81.75 | G31: 342 | H31: 72.41 | I31: 是 | J31: 化学工程与技术 | K31: 统考
A32: 29 | B32: 114144111641476 | C32: 邓洪熙 | D32: 81.86 | E32: 89.17 | F32: 84.05 | G32: 335 | H32: 72.12 | I32: 是 | J32: 化学工程与技术 | K32: 统考
A33: 30 | B33: 114144151086194 | C33: 向乾坤 | D33: 75.86 | E33: 75.33 | F33: 75.70 | G33: 351 | H33: 71.85 | I33: 是 | J33: 化学工程与技术 | K33: 统考
A34: 31 | B34: 114144151116257 | C34: 吴昊 | D34: 74.71 | E34: 75.83 | F34: 75.05 | G34: 352 | H34: 71.80 | I34: 是 | J34: 化学工程与技术 | K34: 统考
A35: 32 | B35: 114144111642086 | C35: 曹高源 | D35: 81.29 | E35: 79.33 | F35: 80.70 | G35: 335 | H35: 71.11 | I35: 是 | J35: 化学工程与技术 | K35: 统考
A36: 33 | B36: 114144113302847 | C36: 郭佳娜 | D36: 74.71 | E36: 79.67 | F36: 76.20 | G36: 342 | H36: 70.74 | I36: 是 | J36: 化学工程与技术 | K36: 统考
A37: 34 | B37: 114144151516340 | C37: 孙秋 | D37: 82.00 | E37: 82.67 | F37: 82.20 | G37: 329 | H37: 70.72 | I37: 是 | J37: 化学工程与技术 | K37: 统考
A38: 35 | B38: 114144111641466 | C38: 许坤环 | D38: 78.57 | E38: 80.50 | F38: 79.15 | G38: 334 | H38: 70.51 | I38: 是 | J38: 化学工程与技术 | K38: 统考
A39: 36 | B39: 114144137024588 | C39: 张琮菡 | D39: 75.86 | E39: 82.33 | F39: 77.80 | G39: 335 | H39: 70.24 | I39: 是 | J39: 化学工程与技术 | K39: 统考
A40: 37 | B40: 114144164046884 | C40: 覃舒琦 | D40: 83.57 | E40: 85.83 | F40: 84.25 | G40: 320 | H40: 70.08 | I40: 是 | J40: 化学工程与技术 | K40: 统考
A41: 38 | B41: 114144141325485 | C41: 史淑颖 | D41: 76.29 | E41: 82.33 | F41: 78.10 | G41: 331 | H41: 69.77 | I41: 是 | J41: 化学工程与技术 | K41: 统考
A42: 39 | B42: 114144161446734 | C42: 刘茜 | D42: 82.29 | E42: 72.67 | F42: 79.40 | G42: 328 | H42: 69.74 | I42: 是 | J42: 化学工程与技术 | K42: 统考
A43: 40 | B43: 114144137074847 | C43: 刘斌 | D43: 76.00 | E43: 76.17 | F43: 76.05 | G43: 334 | H43: 69.58 | I43: 是 | J43: 化学工程与技术 | K43: 统考
A44: 41 | B44: 114144111642065 | C44: 孙鑫洋 | D44: 83.43 | E44: 86.33 | F44: 84.30 | G44: 316 | H44: 69.53 | I44: 是 | J44: 化学工程与技术 | K44: 统考
A45: 42 | B45: 114144161036567 | C45: 谢晓娟 | D45: 81.86 | E45: 82.67 | F45: 82.10 | G45: 320 | H45: 69.43 | I45: 是 | J45: 化学工程与技术 | K45: 统考
A46: 43 | B46: 114144161036570 | C46: 郑婷 | D46: 71.86 | E46: 81.83 | F46: 74.85 | G46: 332 | H46: 68.94 | I46: 是 | J46: 化学工程与技术 | K46: 统考
A47: 44 | B47: 114144141045270 | C47: 何彝昕 | D47: 77.86 | E47: 75.50 | F47: 77.15 | G47: 326 | H47: 68.79 | I47: 是 | J47: 化学工程与技术 | K47: 统考
A48: 45 | B48: 114144141135374 | C48: 李双睿 | D48: 84.29 | E48: 88.83 | F48: 85.65 | G48: 307 | H48: 68.68 | I48: 是 | J48: 化学工程与技术 | K48: 统考
A49: 46 | B49: 114144134064199 | C49: 徐文佳 | D49: 71.86 | E49: 77.50 | F49: 73.55 | G49: 330 | H49: 68.27 | I49: 是 | J49: 化学工程与技术 | K49: 统考
A50: 47 | B50: 114144111641891 | C50: 徐阳 | D50: 79.57 | E50: 85.50 | F50: 81.35 | G50: 310 | H50: 67.81 | I50: 是 | J50: 化学工程与技术 | K50: 统考
A51: 48 | B51: 114144142405823 | C51: 康文博 | D51: 71.14 | E51: 70.00 | F51: 70.80 | G51: 329 | H51: 67.30 | I51: 是 | J51: 化学工程与技术 | K51: 统考
A52: 49 | B52: 114144132163990 | C52: 田汀 | D52: 78.71 | E52: 69.17 | F52: 75.85 | G52: 317 | H52: 67.14 | I52: 是 | J52: 化学工程与技术 | K52: 统考
A53: 50 | B53: 114144137175177 | C53: 程露 | D53: 69.29 | E53: 80.33 | F53: 72.60 | G53: 320 | H53: 66.58 | I53: 候补 | K53: 统考
A54: 51 | B54: 114144137155116 | C54: 秦飞 | D54: 78.71 | E54: 71.17 | F54: 76.45 | G54: 307 | H54: 65.92 | I54: 候补 | K54: 统考
A55: 52 | B55: 114144146036056 | C55: 郑黄江 | D55: 73.57 | E55: 74.00 | F55: 73.70 | G55: 309 | H55: 65.37 | I55: 否
A56: 53 | B56: 114144151146274 | C56: 吴钰熙 | D56: 70.14 | E56: 59.00 | F56: 66.80 | G56: 322 | H56: 65.12 | I56: 否
A57: 54 | B57: 114144112402434 | C57: 李晓冉 | D57: 71.86 | E57: 59.83 | F57: 68.25 | G57: 318 | H57: 65.00 | I57: 否
A58: 55 | B58: 114144113463016 | C58: 王畅 | D58: 69.71 | E58: 68.67 | F58: 69.40 | G58: 314 | H58: 64.78 | I58: 否
A59: 56 | B59: 114144151336301 | C59: 刘嘉欣 | D59: 67.00 | E59: 61.83 | F59: 65.45 | G59: 317 | H59: 64.02 | I59: 否
A60: 57 | B60: 114144141055294 | C60: 姜静茹 | D60: 67.29 | E60: 61.67 | F60: 65.60 | G60: 307 | H60: 62.66 | I60: 否
A61: 备注：如果排名靠前的考生放弃或失去拟录取资格，按照候补名单的顺序依次递补。

Sheet 化学工艺系-专硕
A1: 化学工程与环境学院2024级全日制专业学位硕士研究生复试成绩汇总暨拟录取名单统计表
A2: 复试小组名称：化学工艺系（专业型）
A3: 序号 | B3: 考生编号 | C3: 姓名 | D3: 面试专业成绩 | E3: 面试英语成绩 | F3: 复试成绩 | G3: 初试成绩 | H3: 总成绩 | I3: 是否拟录取 | J3: 拟录取专业 | K3: 考生来源(推免/统考)
A4: 1 | B4: 114144113302868 | C4: 张瑜 | D4: 89.57 | E4: 85.60 | F4: =D4*0.7+E4*0.3 -> 88.38 | G4: 400 | H4: =G4*0.7/5+F4*0.3 -> 82.51 | I4: 是 | J4: 化学工程 | K4: 统考
A5: 2 | B5: 114144137024576 | C5: 王健 | D5: 90.29 | E5: 85.20 | F5: 88.76 | G5: 377 | H5: 79.41 | I5: 是 | J5: 化学工程 | K5: 统考
A6: 3 | B6: 114144113302852 | C6: 李硕 | D6: 84.71 | E6: 63.60 | F6: 78.38 | G6: 383 | H6: 77.13 | I6: 是 | J6: 化学工程 | K6: 统考
A7: 4 | B7: 114144113302848 | C7: 郭家宝 | D7: 84.43 | E7: 87.80 | F7: 85.44 | G7: 367 | H7: 77.01 | I7: 是 | J7: 化学工程 | K7: 统考
A8: 5 | B8: 114144121103486 | C8: 郝洋洋 | D8: 84.71 | E8: 72.40 | F8: 81.02 | G8: 371 | H8: 76.25 | I8: 是 | J8: 化学工程 | K8: 统考
A9: 6 | B9: 114144137155120 | C9: 王亿新 | D9: 89.71 | E9: 80.40 | F9: 86.92 | G9: 356 | H9: 75.92 | I9: 是 | J9: 化学工程 | K9: 统考
A10: 7 | B10: 114144121103502 | C10: 徐晨曦 | D10: 82.00 | E10: 73.00 | F10: 79.30 | G10: 370 | H10: 75.59 | I10: 是 | J10: 化学工程 | K10: 统考
A11: 8 | B11: 114144114053143 | C11: 石晓林 | D11: 85.14 | E11: 81.60 | F11: 84.08 | G11: 357 | H11: 75.20 | I11: 是 | J11: 化学工程 | K11: 统考
A12: 9 | B12: 114144134614273 | C12: 汪一文 | D12: 82.86 | E12: 80.40 | F12: 82.12 | G12: 361 | H12: 75.18 | I12: 是 | J12: 化学工程 | K12: 统考
A13: 10 | B13: 114144137165157 | C13: 郭晓羽 | D13: 87.14 | E13: 73.80 | F13: 83.14 | G13: 358 | H13: 75.06 | I13: 是 | J13: 化学工程 | K13: 统考
A14: 11 | B14: 114144142285770 | C14: 刘宇希 | D14: 88.43 | E14: 85.60 | F14: 87.58 | G14: 342 | H14: 74.15 | I14: 是 | J14: 化学工程 | K14: 统考
A15: 12 | B15: 114144134634284 | C15: 王传明 | D15: 77.71 | E15: 61.40 | F15: 72.82 | G15: 371 | H15: 73.79 | I15: 是 | J15: 化学工程 | K15: 统考
A16: 13 | B16: 114144113302867 | C16: 张宗佳 | D16: 83.29 | E16: 77.40 | F16: 81.52 | G16: 352 | H16: 73.74 | I16: 是 | J16: 化学工程 | K16: 统考
A17: 14 | B17: 114144136014360 | C17: 胡志远 | D17: 84.14 | E17: 67.40 | F17: 79.12 | G17: 357 | H17: 73.72 | I17: 是 | J17: 化学工程 | K17: 统考
A18: 15 | B18: 114144113172760 | C18: 武梦月 | D18: 83.14 | E18: 81.20 | F18: 82.56 | G18: 338 | H18: 72.09 | I18: 是 | J18: 化学工程 | K18: 统考
A19: 16 | B19: 114144137175178 | C19: 段学艺 | D19: 79.29 | E19: 80.00 | F19: 79.50 | G19: 343 | H19: 71.87 | I19: 是 | J19: 化学工程 | K19: 统考
A20: 17 | B20: 114144137084904 | C20: 马骁 | D20: 81.43 | E20: 73.80 | F20: 79.14 | G20: 343 | H20: 71.76 | I20: 是 | J20: 化学工程 | K20: 统考
A21: 18 | B21: 114144121093451 | C21: 张玉泽 | D21: 83.86 | E21: 76.80 | F21: 81.74 | G21: 335 | H21: 71.42 | I21: 是 | J21: 化学工程 | K21: 统考
A22: 19 | B22: 114144137034681 | C22: 郑志国 | D22: 82.86 | E22: 79.20 | F22: 81.76 | G22: 334 | H22: 71.29 | I22: 是 | J22: 化学工程 | K22: 统考
A23: 20 | B23: 114144141325484 | C23: 靳俊豪 | D23: 82.71 | E23: 65.40 | F23: 77.52 | G23: 341 | H23: 71.00 | I23: 是 | J23: 化学工程 | K23: 统考
A24: 21 | B24: 114144114123214 | C24: 吴杰 | D24: 73.43 | E24: 72.40 | F24: 73.12 | G24: 349 | H24: 70.80 | I24: 是 | J24: 化学工程 | K24: 统考
A25: 22 | B25: 114144113302861 | C25: 史占浩 | D25: 85.43 | E25: 72.40 | F25: 81.52 | G25: 330 | H25: 70.66 | I25: 是 | J25: 化学工程 | K25: 统考
A26: 23 | B26: 114144113523077 | C26: 刘博洋 | D26: 82.43 | E26: 74.20 | F26: 79.96 | G26: 333 | H26: 70.61 | I26: 是 | J26: 化学工程 | K26: 统考
A27: 24 | B27: 114144113593121 | C27: 邱红 | D27: 77.86 | E27: 71.60 | F27: 75.98 | G27: 341 | H27: 70.53 | I27: 是 | J27: 化学工程 | K27: 统考
A28: 25 | B28: 114144137034667 | C28: 刘亚威 | D28: 78.00 | E28: 73.6 | F28: 76.68 | G28: 339 | H28: 70.46 | I28: 是 | J28: 化学工程 | K28: 统考
A29: 26 | B29: 114144113302845 | C29: 冯瑞景 | D29: 82.57 | E29: 76.60 | F29: 80.78 | G29: 330 | H29: 70.43 | I29: 是 | J29: 化学工程 | K29: 统考
A30: 27 | B30: 114144137024590 | C30: 赵倩 | D30: 86.71 | E30: 79.20 | F30: 84.46 | G30: 321 | H30: 70.28 | I30: 是 | J30: 化学工程 | K30: 统考
A31: 28 | B31: 114144137155111 | C31: 冀文英 | D31: 78.86 | E31: 70.40 | F31: 76.32 | G31: 338 | H31: 70.22 | I31: 是 | J31: 化学工程 | K31: 统考
A32: 29 | B32: 114144113493062 | C32: 夏梦琪 | D32: 80.14 | E32: 72.00 | F32: 77.70 | G32: 332 | H32: 69.79 | I32: 是 | J32: 化学工程 | K32: 统考
A33: 30 | B33: 114144142255765 | C33: 李楠 | D33: 81.43 | E33: 74.60 | F33: 79.38 | G33: 327 | H33: 69.59 | I33: 是 | J33: 化学工程 | K33: 统考
A34: 31 | B34: 114144137145065 | C34: 马孟立 | D34: 82.00 | E34: 68.00 | F34: 77.80 | G34: 328 | H34: 69.26 | I34: 是 | J34: 化学工程 | K34: 统考
A35: 32 | B35: 114144121103488 | C35: 纪雨含 | D35: 82.29 | E35: 74.60 | F35: 79.98 | G35: 323 | H35: 69.21 | I35: 是 | J35: 化学工程 | K35: 统考
A36: 33 | B36: 114144114053141 | C36: 樊子杨 | D36: 83.29 | E36: 62.60 | F36: 77.08 | G36: 329 | H36: 69.18 | I36: 是 | J36: 化学工程 | K36: 统考
A37: 34 | B37: 114144137014478 | C37: 孙淑萍 | D37: 82.00 | E37: 73.00 | F37: 79.30 | G37: 322 | H37: 68.87 | I37: 是 | J37: 化学工程 | K37: 统考
A38: 35 | B38: 114144137034668 | C38: 罗任远 | D38: 80.14 | E38: 75.80 | F38: 78.84 | G38: 321 | H38: 68.59 | I38: 是 | J38: 化学工程 | K38: 统考
A39: 36 | B39: 114144165347444 | C39: 陈星宇 | D39: 78.29 | E39: 85.00 | F39: 80.30 | G39: 317 | H39: 68.47 | I39: 是 | J39: 化学工程 | K39: 统考
A40: 37 | B40: 114144141305476 | C40: 徐玉莹 | D40: 77.86 | E40: 68.20 | F40: 74.96 | G40: 325 | H40: 67.99 | I40: 是 | J40: 化学工程 | K40: 统考
A41: 38 | B41: 114144137034663 | C41: 贺楠 | D41: 76.57 | E41: 78.00 | F41: 77.00 | G41: 319 | H41: 67.76 | I41: 是 | J41: 化学工程 | K41: 统考
A42: 39 | B42: 114144151146270 | C42: 龙俊屿 | D42: 76.00 | E42: 65.20 | F42: 72.76 | G42: 326 | H42: 67.47 | I42: 候补 | K42: 统考
A43: 40 | B43: 114144137165163 | C43: 张铁印 | D43: 76.00 | E43: 67.60 | F43: 73.48 | G43: 324 | H43: 67.40 | I43: 候补 | K43: 统考
A44: 41 | B44: 114144113493060 | C44: 李峻洁 | D44: 76.00 | E44: 70.60 | F44: 74.38 | G44: 321 | H44: 67.25 | I44: 否
A45: 42 | B45: 114144142285772 | C45: 王波 | D45: 77.14 | E45: 66.00 | F45: 73.80 | G45: 321 | H45: 67.08 | I45: 否
A46: 43 | B46: 114144113302860 | C46: 史如意 | D46: 77.43 | E46: 67.40 | F46: 74.42 | G46: 319 | H46: 66.99 | I46: 否
A47: 44 | B47: 114144121033424 | C47: 佟竹君 | D47: 74.43 | E47: 74.00 | F47: 74.30 | G47: 319 | H47: 66.95 | I47: 否
A48: 45 | B48: 114144137034674 | C48: 徐英烁 | D48: 72.57 | E48: 70.60 | F48: 71.98 | G48: 318 | H48: 66.11 | I48: 否
A49: 46 | B49: 114144123103781 | C49: 徐杉杉 | D49: 73.71 | E49: 56.60 | F49: 68.58 | G49: 319 | H49: 65.23 | I49: 否
A50: 备注：如果排名靠前的考生放弃或失去拟录取资格，按照候补名单的顺序依次递补。

Sheet 化学工程系-学硕
A1: 化学工程与环境学院2024级全日制硕士研究生复试成绩汇总暨拟录取名单统计表
A2: 复试小组名称： 化学工程系（学术型）
A3: 序号 | B3: 考生编号 | C3: 姓名 | D3: 面试专业成绩 | E3: 面试英语成绩 | F3: 复试成绩 | G3: 初试成绩 | H3: 总成绩 | I3: 是否拟录取 | J3: 拟录取专业 | K3: 考生来源(推免/统考)
A4: 1 | B4: 114144114123213 | C4: 焦智宇 | D4: 87.56 | E4: 87.50 | F4: 87.54 | G4: 400 | H4: 82.26 | I4: 是 | J4: 化学工程与技术 | K4: 统考
A5: 2 | B5: 114144137024579 | C5: 王一开 | D5: 87.33 | E5: 85.75 | F5: 86.86 | G5: 376 | H5: 78.70 | I5: 是 | J5: 化学工程与技术 | K5: 统考
A6: 3 | B6: 114144113112719 | C6: 李亚楠 | D6: 82.56 | E6: 83.50 | F6: 82.84 | G6: 382 | H6: 78.33 | I6: 是 | J6: 化学工程与技术 | K6: 统考
A7: 4 | B7: 114144111641363 | C7: 郭仪婷 | D7: 88.67 | E7: 79.00 | F7: 85.77 | G7: 375 | H7: 78.23 | I7: 是 | J7: 化学工程与技术 | K7: 统考
A8: 5 | B8: 114144113192781 | C8: 兰松洲 | D8: 87.67 | E8: 84.40 | F8: 86.69 | G8: 368 | H8: 77.53 | I8: 是 | J8: 化学工程与技术 | K8: 统考
A9: 6 | B9: 114144137064788 | C9: 孙兆伦 | D9: 87.78 | E9: 85.80 | F9: 87.18 | G9: 361 | H9: 76.70 | I9: 是 | J9: 化学工程与技术 | K9: 统考
A10: 7 | B10: 114144111641373 | C10: 陈建忠 | D10: 85.22 | E10: 83.00 | F10: 84.56 | G10: 366 | H10: 76.61 | I10: 是 | J10: 化学工程与技术 | K10: 统考
A11: 8 | B11: 114144142405822 | C11: 晋嘉栋 | D11: 84.11 | E11: 79.20 | F11: 82.64 | G11: 364 | H11: 75.75 | I11: 是 | J11: 化学工程与技术 | K11: 统考
A12: 9 | B12: 114144151106237 | C12: 游江涛 | D12: 81.78 | E12: 78.60 | F12: 80.82 | G12: 364 | H12: 75.21 | I12: 是 | J12: 化学工程与技术 | K12: 统考
A13: 10 | B13: 114144137024570 | C13: 刘一诺 | D13: 86.33 | E13: 85.40 | F13: 86.05 | G13: 352 | H13: 75.10 | I13: 是 | J13: 化学工程与技术 | K13: 统考
A14: 11 | B14: 114144137024563 | C14: 胡博文 | D14: 82.33 | E14: 84.00 | F14: 82.83 | G14: 354 | H14: 74.41 | I14: 是 | J14: 化学工程与技术 | K14: 统考
A15: 12 | B15: 114144150136088 | C15: 李佳睿 | D15: 81.78 | E15: 78.80 | F15: 80.88 | G15: 357 | H15: 74.25 | I15: 是 | J15: 化学工程与技术 | K15: 统考
A16: 13 | B16: 114144113302855 | C16: 刘广帅 | D16: 83.22 | E16: 82.20 | F16: 82.92 | G16: 352 | H16: 74.15 | I16: 是 | J16: 化学工程与技术 | K16: 统考
A17: 14 | B17: 114144114203265 | C17: 李雨航 | D17: 81.00 | E17: 84.40 | F17: 82.02 | G17: 351 | H17: 73.75 | I17: 是 | J17: 化学工程与技术 | K17: 统考
A18: 15 | B18: 114144137014479 | C18: 王子安 | D18: 79.67 | E18: 82.60 | F18: 80.55 | G18: 351 | H18: 73.30 | I18: 是 | J18: 化学工程与技术 | K18: 统考
A19: 16 | B19: 114144132174015 | C19: 张家旭 | D19: 81.11 | E19: 77.00 | F19: 79.88 | G19: 350 | H19: 72.96 | I19: 是 | J19: 化学工程与技术 | K19: 统考
A20: 17 | B20: 114144132224043 | C20: 王平香 | D20: 78.44 | E20: 78.00 | F20: 78.31 | G20: 352 | H20: 72.77 | I20: 是 | J20: 化学工程与技术 | K20: 统考
A21: 18 | B21: 114144113092653 | C21: 李华月 | D21: 80.00 | E21: 80.60 | F21: 80.18 | G21: 345 | H21: 72.35 | I21: 是 | J21: 化学工程与技术 | K21: 统考
A22: 19 | B22: 114144113092662 | C22: 朱世萌 | D22: 81.22 | E22: 77.00 | F22: 79.96 | G22: 344 | H22: 72.15 | I22: 是 | J22: 化学工程与技术 | K22: 统考
A23: 20 | B23: 114144137155110 | C23: 郭宗慧 | D23: 79.33 | E23: 82.60 | F23: 80.31 | G23: 342 | H23: 71.97 | I23: 是 | J23: 化学工程与技术 | K23: 统考
A24: 21 | B24: 114144151106229 | C24: 陈丹 | D24: 83.67 | E24: 82.60 | F24: 83.35 | G24: 334 | H24: 71.76 | I24: 是 | J24: 化学工程与技术 | K24: 统考
A25: 22 | B25: 114144137155115 | C25: 孟阳 | D25: 78.33 | E25: 79.00 | F25: 78.53 | G25: 343 | H25: 71.58 | I25: 是 | J25: 化学工程与技术 | K25: 统考
A26: 23 | B26: 114144137024562 | C26: 耿琪 | D26: 80.56 | E26: 78.40 | F26: 79.91 | G26: 339 | H26: 71.43 | I26: 是 | J26: 化学工程与技术 | K26: 统考
A27: 24 | B27: 114144137074849 | C27: 牟明震 | D27: 78.78 | E27: 80.00 | F27: 79.14 | G27: 339 | H27: 71.20 | I27: 是 | J27: 化学工程与技术 | K27: 统考
A28: 25 | B28: 114144111641371 | C28: 陈虹雨 | D28: 78.56 | E28: 81.80 | F28: 79.53 | G28: 337 | H28: 71.04 | I28: 是 | J28: 化学工程与技术 | K28: 统考
A29: 26 | B29: 114144111641805 | C29: 石苗苗 | D29: 80.89 | E29: 82.60 | F29: 81.40 | G29: 332 | H29: 70.90 | I29: 是 | J29: 化学工程与技术 | K29: 统考
A30: 27 | B30: 114144137074848 | C30: 刘宇 | D30: 78.88 | E30: 77.40 | F30: 78.43 | G30: 338 | H30: 70.85 | I30: 是 | J30: 化学工程与技术 | K30: 统考
A31: 28 | B31: 114144113583107 | C31: 白深菲 | D31: 79.44 | E31: 79.20 | F31: 79.37 | G31: 334 | H31: 70.57 | I31: 是 | J31: 化学工程与技术 | K31: 统考
A32: 29 | B32: 114144113302857 | C32: 刘依诺 | D32: 82.11 | E32: 82.40 | F32: 82.20 | G32: 327 | H32: 70.44 | I32: 是 | J32: 化学工程与技术 | K32: 统考
A33: 30 | B33: 114144165347445 | C33: 樊子阳 | D33: 79.56 | E33: 78.40 | F33: 79.21 | G33: 333 | H33: 70.38 | I33: 是 | J33: 化学工程与技术 | K33: 统考
A34: 31 | B34: 114144111642072 | C34: 张光熙 | D34: 76.67 | E34: 82.40 | F34: 78.39 | G34: 333 | H34: 70.14 | I34: 是 | J34: 化学工程与技术 | K34: 统考
A35: 32 | B35: 114144137155112 | C35: 姜红晨 | D35: 82.22 | E35: 78.00 | F35: 80.96 | G35: 322 | H35: 69.37 | I35: 是 | J35: 化学工程与技术 | K35: 统考
A36: 33 | B36: 114144113172757 | C36: 刘佳苗 | D36: 78.11 | E36: 81.40 | F36: 79.10 | G36: 325 | H36: 69.23 | I36: 是 | J36: 化学工程与技术 | K36: 统考
A37: 34 | B37: 114144115283386 | C37: 王文杰 | D37: 78.56 | E37: 78.00 | F37: 78.39 | G37: 326 | H37: 69.16 | I37: 是 | J37: 化学工程与技术 | K37: 统考
A38: 35 | B38: 114144165347448 | C38: 韩天豪 | D38: 79.22 | E38: 84.80 | F38: 80.90 | G38: 318 | H38: 68.79 | I38: 是 | J38: 化学工程与技术 | K38: 统考
A39: 36 | B39: 114144145096037 | C39: 彭静 | D39: 77.78 | E39: 81.00 | F39: 78.74 | G39: 322 | H39: 68.70 | I39: 是 | J39: 化学工程与技术 | K39: 统考
A40: 37 | B40: 114144151106235 | C40: 王雨 | D40: 78.56 | E40: 81.00 | F40: 79.29 | G40: 319 | H40: 68.45 | I40: 是 | J40: 化学工程与技术 | K40: 统考
A41: 38 | B41: 114144165347449 | C41: 何顺 | D41: 80.22 | E41: 80.00 | F41: 80.16 | G41: 316 | H41: 68.29 | I41: 是 | J41: 化学工程与技术 | K41: 统考
A42: 39 | B42: 114144137074851 | C42: 王继博 | D42: 80.78 | E42: 79.00 | F42: 80.24 | G42: 315 | H42: 68.17 | I42: 是 | J42: 化学工程与技术 | K42: 统考
A43: 40 | B43: 114144137034679 | C43: 赵娜 | D43: 80.89 | E43: 83.00 | F43: 81.52 | G43: 312 | H43: 68.14 | I43: 是 | J43: 化学工程与技术 | K43: 统考
A44: 41 | B44: 114144113092658 | C44: 王璞宇 | D44: 62.78 | E44: 62.00 | F44: 62.54 | G44: 318 | H44: 63.28 | I44: 候补 | K44: 统考
A45: 42 | B45: 114144111642216 | C45: 马天野 | D45: 62.22 | E45: 62.20 | F45: 62.22 | G45: 315 | H45: 62.76 | I45: 候补 | K45: 统考
A46: 43 | B46: 114144141035256 | C46: 崔龙飞 | D46: 60.67 | E46: 59.00 | F46: 60.17 | G46: 317 | H46: 62.43 | I46: 否
A47: 44 | B47: 114144161036566 | C47: 翁婷婷 | D47: 61.22 | E47: 65.00 | F47: 62.36 | G47: 312 | H47: 62.39 | I47: 否
A48: 45 | B48: 114144137064783 | C48: 孔丽燕 | D48: 61.67 | E48: 62.00 | F48: 61.77 | G48: 313 | H48: 62.35 | I48: 否
A49: 46 | B49: 114144113302862 | C49: 王兆祥 | D49: 62.11 | E49: 62.40 | F49: 62.20 | G49: 312 | H49: 62.34 | I49: 否
A50: 47 | B50: 114144141515570 | C50: 郝程倩 | D50: 61.33 | E50: 59.00 | F50: 60.63 | G50: 314 | H50: 62.15 | I50: 否
A51: 48 | B51: 114144141195441 | C51: 贺丹 | D51: 60.22 | E51: 61.20 | F51: 60.52 | G51: 311 | H51: 61.69 | I51: 否
A52: 备注：如果排名靠前的考生放弃或失去拟录取资格，按照候补名单的顺序依次递补。

Sheet 化学工程系-专硕
A1: 化学工程与环境学院2024级全日制专业学位硕士研究生复试成绩汇总暨拟录取名单统计表
A2: 复试小组名称： 化学工程系（专业型）
A3: 序号 | B3: 考生编号 | C3: 姓名 | D3: 面试专业成绩 | E3: 面试英语成绩 | F3: 复试成绩 | G3: 初试成绩 | H3: 总成绩 | I3: 是否拟录取 | J3: 拟录取专业 | K3: 考生来源(推免/统考)
A4: 1 | B4: 114144137044695 | C4: 李鑫 | D4: 88.00 | E4: 82.00 | F4: =D4*0.7+E4*0.3 -> 86.20 | G4: 389 | H4: =G4/5*0.7+F4*0.3 -> 80.32 | I4: 是 | J4: 化学工程 | K4: 统考
A5: 2 | B5: 114144141205445 | C5: 刘梦蝶 | D5: 86.44 | E5: 84.20 | F5: 85.77 | G5: 382 | H5: 79.21 | I5: 是 | J5: 化学工程 | K5: 统考
A6: 3 | B6: 114144133114141 | C6: 张丽萍 | D6: 86.78 | E6: 84.00 | F6: 85.94 | G6: 374 | H6: 78.14 | I6: 是 | J6: 化学工程 | K6: 统考
A7: 4 | B7: 114144111642188 | C7: 贺聪豪 | D7: 86.44 | E7: 82.60 | F7: 85.29 | G7: 368 | H7: 77.11 | I7: 是 | J7: 化学工程 | K7: 统考
A8: 5 | B8: 114144113302856 | C8: 刘强 | D8: 86.33 | E8: 78.00 | F8: 83.83 | G8: 368 | H8: 76.67 | I8: 是 | J8: 化学工程 | K8: 统考
A9: 6 | B9: 114144121103508 | C9: 庾柏睿 | D9: 86.44 | E9: 79.60 | F9: 84.39 | G9: 364 | H9: 76.28 | I9: 是 | J9: 化学工程 | K9: 统考
A10: 7 | B10: 114144137064778 | C10: 陈振坤 | D10: 85.89 | E10: 79.00 | F10: 83.82 | G10: 363 | H10: 75.97 | I10: 是 | J10: 化学工程 | K10: 统考
A11: 8 | B11: 114144137024559 | C11: 曹现昊 | D11: 83.11 | E11: 82.40 | F11: 82.90 | G11: 361 | H11: 75.41 | I11: 是 | J11: 化学工程 | K11: 统考
A12: 9 | B12: 114144121103493 | C12: 刘佳铭 | D12: 84.67 | E12: 81.80 | F12: 83.81 | G12: 359 | H12: 75.40 | I12: 是 | J12: 化学工程 | K12: 统考
A13: 10 | B13: 114144137024571 | C13: 苗雨洁 | D13: 83.78 | E13: 77.60 | F13: 81.92 | G13: 359 | H13: 74.84 | I13: 是 | J13: 化学工程 | K13: 统考
A14: 11 | B14: 114144113302863 | C14: 魏子一 | D14: 85.33 | E14: 80.00 | F14: 83.73 | G14: 355 | H14: 74.82 | I14: 是 | J14: 化学工程 | K14: 统考
A15: 12 | B15: 114144137094947 | C15: 丁万林 | D15: 82.89 | E15: 79.40 | F15: 81.84 | G15: 357 | H15: 74.53 | I15: 是 | J15: 化学工程 | K15: 统考
A16: 13 | B16: 114144165347473 | C16: 武川琦 | D16: 81.44 | E16: 80.00 | F16: 81.01 | G16: 358 | H16: 74.42 | I16: 是 | J16: 化学工程 | K16: 统考
A17: 14 | B17: 114144137084896 | C17: 管国晶 | D17: 87.33 | E17: 84.00 | F17: 86.33 | G17: 346 | H17: 74.34 | I17: 是 | J17: 化学工程 | K17: 统考
A18: 15 | B18: 114144137024569 | C18: 刘恩久 | D18: 87.56 | E18: 78.00 | F18: 84.69 | G18: 346 | H18: 73.85 | I18: 是 | J18: 化学工程 | K18: 统考
A19: 16 | B19: 114144145016026 | C19: 施丽芳 | D19: 82.78 | E19: 83.60 | F19: 83.02 | G19: 349 | H19: 73.77 | I19: 是 | J19: 化学工程 | K19: 统考
A20: 17 | B20: 114144121103503 | C20: 徐富成 | D20: 82.22 | E20: 84.00 | F20: 82.76 | G20: 346 | H20: 73.27 | I20: 是 | J20: 化学工程 | K20: 统考
A21: 18 | B21: 114144137024582 | C21: 杨硕涵 | D21: 82.78 | E21: 84.00 | F21: 83.14 | G21: 341 | H21: 72.68 | I21: 是 | J21: 化学工程 | K21: 统考
A22: 19 | B22: 114144121103492 | C22: 刘航硕 | D22: 84.89 | E22: 80.40 | F22: 83.54 | G22: 340 | H22: 72.66 | I22: 是 | J22: 化学工程 | K22: 统考
A23: 20 | B23: 114144113302869 | C23: 赵旭璐 | D23: 81.00 | E23: 82.00 | F23: 81.30 | G23: 335 | H23: 71.29 | I23: 是 | J23: 化学工程 | K23: 统考
A24: 21 | B24: 114144111641524 | C24: 赵嘉童 | D24: 82.00 | E24: 81.00 | F24: 81.70 | G24: 334 | H24: 71.27 | I24: 是 | J24: 化学工程 | K24: 统考
A25: 22 | B25: 114144113152742 | C25: 尹世龙 | D25: 80.44 | E25: 79.67 | F25: 80.21 | G25: 336 | H25: 71.10 | I25: 候补 | K25: 统考
A26: 23 | B26: 114144137084912 | C26: 张欣悦 | D26: 65.33 | E26: 63.20 | F26: 64.69 | G26: 357 | H26: 69.39 | I26: 候补 | K26: 统考
A27: 24 | B27: 114144137074856 | C27: 张慧慧 | D27: 62.56 | E27: 63.40 | F27: 62.81 | G27: 351 | H27: 67.98 | I27: 否
A28: 25 | B28: 114144151106234 | C28: 王鹏远 | D28: 62.33 | E28: 65.00 | F28: 63.13 | G28: 334 | H28: 65.70 | I28: 否
A29: 26 | B29: 114144165347447 | C29: 辜月玲 | D29: 62.33 | E29: 67.00 | F29: 63.73 | G29: 332 | H29: 65.60 | I29: 否
A30: 备注：如果排名靠前的考生放弃或失去拟录取资格，按照候补名单的顺序依次递补。

Sheet 能源与催化系-学硕
A1: 化学工程与环境学院2024级全日制硕士研究生复试成绩汇总暨拟录取名单统计表
A2: 复试小组名称：能源与催化工程系 （学术型）
A3: 序号 | B3: 考生编号 | C3: 姓名 | D3: 面试专业成绩 | E3: 面试英语成绩 | F3: 复试成绩 | G3: 初试成绩 | H3: 总成绩 | I3: 是否拟录取 | J3: 拟录取专业 | K3: 考生来源(推免/统考)
A4: 1 | B4: 114144143245934 | C4: 李博 | D4: 79.40 | E4: 80.43 | F4: 79.71 | G4: 370 | H4: 75.71 | I4: 是 | J4: 化学工程与技术 | K4: 统考
A5: 2 | B5: 114144137024560 | C5: 崔颖 | D5: 81.40 | E5: 83.71 | F5: 82.09 | G5: 363 | H5: 75.45 | I5: 是 | J5: 化学工程与技术 | K5: 统考
A6: 3 | B6: 114144113493057 | C6: 韩忠奥 | D6: 75.40 | E6: 78.00 | F6: 76.18 | G6: 371 | H6: 74.79 | I6: 是 | J6: 化学工程与技术 | K6: 统考
A7: 4 | B7: 114144134064197 | C7: 邓雨 | D7: 80.00 | E7: 82.86 | F7: 80.86 | G7: 356 | H7: 74.10 | I7: 是 | J7: 化学工程与技术 | K7: 统考
A8: 5 | B8: 114144161036559 | C8: 姜雯书 | D8: 81.40 | E8: 81.00 | F8: 81.28 | G8: 354 | H8: 73.94 | I8: 是 | J8: 化学工程与技术 | K8: 统考
A9: 6 | B9: 114144151106236 | C9: 熊若茜 | D9: 83.80 | E9: 86.57 | F9: 84.63 | G9: 339 | H9: 72.85 | I9: 是 | J9: 化学工程与技术 | K9: 统考
A10: 7 | B10: 114144114053142 | C10: 高双妍 | D10: 77.40 | E10: 80.14 | F10: 78.22 | G10: 351 | H10: 72.61 | I10: 是 | J10: 化学工程与技术 | K10: 统考
A11: 8 | B11: 114144151106241 | C11: 朱晓丹 | D11: 83.20 | E11: 79.29 | F11: 82.03 | G11: 338 | H11: 71.93 | I11: 是 | J11: 化学工程与技术 | K11: 统考
A12: 9 | B12: 114144111642212 | C12: 李心雨 | D12: 77.60 | E12: 82.86 | F12: 79.18 | G12: 340 | H12: 71.35 | I12: 是 | J12: 化学工程与技术 | K12: 统考
A13: 10 | B13: 114144137155114 | C13: 刘梦真 | D13: 81.00 | E13: 77.43 | F13: 79.93 | G13: 338 | H13: 71.30 | I13: 是 | J13: 化学工程与技术 | K13: 统考
A14: 11 | B14: 114144137074840 | C14: 崔新娇 | D14: 77.60 | E14: 79.71 | F14: 78.23 | G14: 340 | H14: 71.07 | I14: 是 | J14: 化学工程与技术 | K14: 统考
A15: 12 | B15: 114144114183252 | C15: 牛鑫茹 | D15: 77.60 | E15: 80.86 | F15: 78.58 | G15: 339 | H15: 71.03 | I15: 是 | J15: 化学工程与技术 | K15: 统考
A16: 13 | B16: 114144137155121 | C16: 王睿颖 | D16: 78.40 | E16: 78.86 | F16: 78.54 | G16: 338 | H16: 70.88 | I16: 是 | J16: 化学工程与技术 | K16: 统考
A17: 14 | B17: 114144137155122 | C17: 徐成龙 | D17: 79.80 | E17: 70.14 | F17: 76.90 | G17: 339 | H17: 70.53 | I17: 是 | J17: 化学工程与技术 | K17: 统考
A18: 15 | B18: 114144142285774 | C18: 张萌 | D18: 85.00 | E18: 81.71 | F18: 84.01 | G18: 322 | H18: 70.28 | I18: 是 | J18: 化学工程与技术 | K18: 统考
A19: 16 | B19: 114144136084389 | C19: 胡佳陵 | D19: 77.20 | E19: 71.00 | F19: 75.34 | G19: 339 | H19: 70.06 | I19: 是 | J19: 化学工程与技术 | K19: 统考
A20: 17 | B20: 114144113523079 | C20: 陶开兴 | D20: 77.20 | E20: 88.43 | F20: 80.57 | G20: 327 | H20: 69.95 | I20: 是 | J20: 化学工程与技术 | K20: 统考
A21: 18 | B21: 114144137064790 | C21: 王忻 | D21: 79.60 | E21: 89.29 | F21: 82.51 | G21: 322 | H21: 69.83 | I21: 是 | J21: 化学工程与技术 | K21: 统考
A22: 19 | B22: 114144111641808 | C22: 乔帅帅 | D22: 77.20 | E22: 79.71 | F22: 77.95 | G22: 331 | H22: 69.73 | I22: 是 | J22: 化学工程与技术 | K22: 统考
A23: 20 | B23: 114144112402436 | C23: 张研 | D23: 79.00 | E23: 74.86 | F23: 77.76 | G23: 331 | H23: 69.67 | I23: 是 | J23: 化学工程与技术 | K23: 统考
A24: 21 | B24: 114144153036416 | C24: 魏琼瑶 | D24: 74.60 | E24: 80.00 | F24: 76.22 | G24: 330 | H24: 69.07 | I24: 是 | J24: 化学工程与技术 | K24: 统考
A25: 22 | B25: 114144161036568 | C25: 张佳瑶 | D25: 71.00 | E25: 81.29 | F25: 74.09 | G25: 334 | H25: 68.99 | I25: 是 | J25: 化学工程与技术 | K25: 统考
A26: 23 | B26: 114144113513067 | C26: 步冰冰 | D26: 77.40 | E26: 79.43 | F26: 78.01 | G26: 323 | H26: 68.62 | I26: 是 | J26: 化学工程与技术 | K26: 统考
A27: 24 | B27: 114144151146272 | C27: 钱杨 | D27: 80.00 | E27: 73.86 | F27: 78.16 | G27: 322 | H27: 68.53 | I27: 是 | J27: 化学工程与技术 | K27: 统考
A28: 25 | B28: 114144137034670 | C28: 宋谦 | D28: 75.60 | E28: 75.14 | F28: 75.46 | G28: 327 | H28: 68.42 | I28: 是 | J28: 化学工程与技术 | K28: 统考
A29: 26 | B29: 114144137074854 | C29: 姚成树 | D29: 76.60 | E29: 70.29 | F29: 74.71 | G29: 327 | H29: 68.19 | I29: 是 | J29: 化学工程与技术 | K29: 统考
A30: 27 | B30: 114144143145888 | C30: 王储 | D30: 81.80 | E30: 76.00 | F30: 80.06 | G30: 315 | H30: 68.12 | I30: 是 | J30: 化学工程与技术 | K30: 统考
A31: 28 | B31: 114144111641842 | C31: 秦小童 | D31: 85.00 | E31: 83.86 | F31: 84.66 | G31: 303 | H31: 67.82 | I31: 是 | J31: 化学工程与技术 | K31: 统考
A32: 29 | B32: 114144121103490 | C32: 栗亮亮 | D32: 73.40 | E32: 75.14 | F32: 73.92 | G32: 326 | H32: 67.82 | I32: 是 | J32: 化学工程与技术 | K32: 统考
A33: 30 | B33: 114144151206282 | C33: 谭意 | D33: 82.80 | E33: 85.43 | F33: 83.59 | G33: 304 | H33: 67.64 | I33: 是 | J33: 化学工程与技术 | K33: 统考
A34: 31 | B34: 114144144025965 | C34: 黎海铭 | D34: 83.60 | E34: 81.14 | F34: 82.86 | G34: 305 | H34: 67.56 | I34: 是 | J34: 化学工程与技术 | K34: 统考
A35: 32 | B35: 114144113593119 | C35: 林春梦 | D35: 75.80 | E35: 80.14 | F35: 77.10 | G35: 317 | H35: 67.51 | I35: 是 | J35: 化学工程与技术 | K35: 统考
A36: 33 | B36: 114144141235462 | C36: 许心彤 | D36: 80.20 | E36: 77.86 | F36: 79.50 | G36: 311 | H36: 67.39 | I36: 是 | J36: 化学工程与技术 | K36: 统考
A37: 34 | B37: 114144137094948 | C37: 韩承俊 | D37: 74.00 | E37: 77.71 | F37: 75.11 | G37: 320 | H37: 67.33 | I37: 是 | J37: 化学工程与技术 | K37: 统考
A38: 35 | B38: 114144136134402 | C38: 何小芳 | D38: 81.20 | E38: 82.29 | F38: 81.53 | G38: 306 | H38: 67.30 | I38: 是 | J38: 化学工程与技术 | K38: 统考
A39: 36 | B39: 114144137175187 | C39: 马茹茹 | D39: 75.00 | E39: 75.14 | F39: 75.04 | G39: 319 | H39: 67.17 | I39: 候补 | K39: 统考
A40: 37 | B40: 114144137064784 | C40: 李思雯 | D40: 78.00 | E40: 77.00 | F40: 77.70 | G40: 311 | H40: 66.85 | I40: 候补 | K40: 统考
A41: 38 | B41: 114144137034669 | C41: 秦俊荣 | D41: 78.00 | E41: 81.29 | F41: 78.99 | G41: 306 | H41: 66.54 | I41: 否
A42: 39 | B42: 114144113362927 | C42: 张田正一 | D42: 74.40 | E42: 75.86 | F42: 74.84 | G42: 313 | H42: 66.27 | I42: 否
A43: 40 | B43: 114144111641657 | C43: 袁欣 | D43: 77.60 | E43: 74.71 | F43: 76.73 | G43: 306 | H43: 65.86 | I43: 否
A44: 41 | B44: 114144121103491 | C44: 梁红瑞 | D44: 76.00 | E44: 68.71 | F44: 73.81 | G44: 309 | H44: 65.40 | I44: 否
A45: 42 | B45: 114144112402435 | C45: 孟腾飞 | D45: 74.20 | E45: 76.29 | F45: 74.83 | G45: 304 | H45: 65.01 | I45: 否
A46: 备注：如果排名靠前的考生放弃或失去拟录取资格，按照候补名单的顺序依次递补。

Sheet 能源与催化系-专硕
A1: 化学工程与环境学院2024级全日制专业学位硕士研究生复试成绩汇总暨拟录取名单统计表
A2: 复试小组名称：能源与催化工程系 （专业型）
A3: 序号 | B3: 考生编号 | C3: 姓名 | D3: 面试专业成绩 | E3: 面试英语成绩 | F3: 复试成绩 | G3: 初试成绩 | H3: 总成绩 | I3: 是否拟录取 | J3: 拟录取专业 | K3: 考生来源(推免/统考)
A4: 1 | B4: 114144121133563 | C4: 王晨 | D4: 82.80 | E4: 82.80 | F4: 82.80 | G4: 384 | H4: 78.60 | I4: 是 | J4: 化学工程 | K4: 统考
A5: 2 | B5: 114144113302871 | C5: 支栋鹤 | D5: 86.80 | E5: 85.20 | F5: 86.32 | G5: 371 | H5: 77.84 | I5: 是 | J5: 化学工程 | K5: 统考
A6: 3 | B6: 114144137165161 | C6: 马文华 | D6: 78.40 | E6: 83.20 | F6: 79.84 | G6: 374 | H6: 76.31 | I6: 是 | J6: 化学工程 | K6: 统考
A7: 4 | B7: 114144134614274 | C7: 杨航 | D7: 87.40 | E7: 85.20 | F7: 86.74 | G7: 354 | H7: 75.58 | I7: 是 | J7: 化学工程 | K7: 统考
A8: 5 | B8: 114144113202787 | C8: 王盟 | D8: 85.80 | E8: 79.80 | F8: 84.00 | G8: 354 | H8: 74.76 | I8: 是 | J8: 化学工程 | K8: 统考
A9: 6 | B9: 114144151146271 | C9: 门宇成 | D9: 79.80 | E9: 81.60 | F9: 80.34 | G9: 361 | H9: 74.64 | I9: 是 | J9: 化学工程 | K9: 统考
A10: 7 | B10: 114144137175179 | C10: 范振存 | D10: 73.20 | E10: 76.00 | F10: 74.04 | G10: 369 | H10: 73.87 | I10: 是 | J10: 化学工程 | K10: 统考
A11: 8 | B11: 114144137145061 | C11: 孔祥磊 | D11: 79.20 | E11: 79.40 | F11: 79.26 | G11: 352 | H11: 73.06 | I11: 是 | J11: 化学工程 | K11: 统考
A12: 9 | B12: 114144113593120 | C12: 牛竣 | D12: 85.80 | E12: 78.80 | F12: 83.70 | G12: 339 | H12: 72.57 | I12: 是 | J12: 化学工程 | K12: 统考
A13: 10 | B13: 114144137165159 | C13: 李璇 | D13: 83.60 | E13: 77.80 | F13: 81.86 | G13: 338 | H13: 71.88 | I13: 是 | J13: 化学工程 | K13: 统考
A14: 11 | B14: 114144113362925 | C14: 卫羽萱 | D14: 84.20 | E14: 79.40 | F14: 82.76 | G14: 335 | H14: 71.73 | I14: 是 | J14: 化学工程 | K14: 统考
A15: 12 | B15: 114144137024561 | C15: 崔粲 | D15: 80.20 | E15: 82.40 | F15: 80.86 | G15: 339 | H15: 71.72 | I15: 是 | J15: 化学工程 | K15: 统考
A16: 13 | B16: 114144141045272 | C16: 张永波 | D16: 82.00 | E16: 78.60 | F16: 80.98 | G16: 338 | H16: 71.61 | I16: 是 | J16: 化学工程 | K16: 统考
A17: 14 | B17: 114144111642129 | C17: 黄小河 | D17: 87.60 | E17: 81.60 | F17: 85.80 | G17: 327 | H17: 71.52 | I17: 是 | J17: 化学工程 | K17: 统考
A18: 15 | B18: 114144137175181 | C18: 葛庆悦 | D18: 86.60 | E18: 86.80 | F18: 86.66 | G18: 325 | H18: 71.50 | I18: 是 | J18: 化学工程 | K18: 统考
A19: 16 | B19: 114144133084112 | C19: 熊龙龙 | D19: 81.00 | E19: 74.40 | F19: 79.02 | G19: 341 | H19: 71.45 | I19: 是 | J19: 化学工程 | K19: 统考
A20: 17 | B20: 114144137074842 | C20: 侯克克 | D20: 82.20 | E20: 73.80 | F20: 79.68 | G20: 337 | H20: 71.08 | I20: 是 | J20: 化学工程 | K20: 统考
A21: 18 | B21: 114144113493059 | C21: 胡学锋 | D21: 81.20 | E21: 74.40 | F21: 79.16 | G21: 337 | H21: 70.93 | I21: 是 | J21: 化学工程 | K21: 统考
A22: 19 | B22: 114144162026772 | C22: 李凯凯 | D22: 84.60 | E22: 88.80 | F22: 85.86 | G22: 322 | H22: 70.84 | I22: 是 | J22: 化学工程 | K22: 统考
A23: 20 | B23: 114144141145393 | C23: 贾伟振 | D23: 80.20 | E23: 78.80 | F23: 79.78 | G23: 335 | H23: 70.83 | I23: 是 | J23: 化学工程 | K23: 统考
A24: 21 | B24: 114144141535578 | C24: 李恒毅 | D24: 81.60 | E24: 73.40 | F24: 79.14 | G24: 336 | H24: 70.78 | I24: 是 | J24: 化学工程 | K24: 统考
A25: 22 | B25: 114144142115707 | C25: 李佳瑶 | D25: 83.80 | E25: 80.40 | F25: 82.78 | G25: 324 | H25: 70.19 | I25: 是 | J25: 化学工程 | K25: 统考
A26: 23 | B26: 114144113302866 | C26: 张彦振 | D26: 81.00 | E26: 87.40 | F26: 82.92 | G26: 323 | H26: 70.10 | I26: 候补 | K26: 统考
A27: 24 | B27: 114144113152741 | C27: 刘通 | D27: 78.00 | E27: 73.40 | F27: 76.62 | G27: 335 | H27: 69.89 | I27: 否
A28: 25 | B28: 114144141545581 | C28: 廖纪招 | D28: 82.60 | E28: 81.00 | F28: 82.12 | G28: 323 | H28: 69.86 | I28: 否
A29: 26 | B29: 114144141115358 | C29: 王潚君 | D29: 75.40 | E29: 74.60 | F29: 75.16 | G29: 327 | H29: 68.33 | I29: 否
A30: 备注：如果排名靠前的考生放弃或失去拟录取资格，按照候补名单的顺序依次递补。

Sheet 提高采收率-学硕
A1: 化学工程与环境学院2024级全日制硕士研究生复试成绩汇总暨拟录取名单统计表
A2: 复试小组名称：提高采收率组（学术型）
A3: 序号 | B3: 考生编号 | C3: 姓名 | D3: 面试专业成绩 | E3: 面试英语成绩 | F3: 复试成绩 | G3: 初试成绩 | H3: 总成绩 | I3: 是否拟录取 | J3: 拟录取专业 | K3: 考生来源(推免/统考)
A4: 1 | B4: 114144142115706 | C4: 蒋林涓 | D4: 83.71 | E4: 82.86 | F4: =(D4*0.7+E4*0.3) -> 83.46 | G4: 339 | H4: =(G4/5)*0.7+F4*0.3 -> 72.50 | I4: 是 | J4: 化学工程与技术 | K4: 统考
A5: 2 | B5: 114144137084909 | C5: 许聪聪 | D5: 86.86 | E5: 85.71 | F5: 86.51 | G5: 315 | H5: 70.05 | I5: 是 | J5: 化学工程与技术 | K5: 统考
A6: 3 | B6: 114144122023639 | C6: 李加慧 | D6: 85.86 | E6: 84.57 | F6: 85.47 | G6: 310 | H6: 69.04 | I6: 是 | J6: 化学工程与技术 | K6: 统考
A7: 4 | B7: 114144121163585 | C7: 杨双 | D7: 83.57 | E7: 85.57 | F7: 84.17 | G7: 305 | H7: 67.95 | I7: 是 | J7: 化学工程与技术 | K7: 统考
A8: 5 | B8: 114144111642209 | C8: 张鹏 | D8: 83.86 | E8: 84.14 | F8: 83.94 | G8: 305 | H8: 67.88 | I8: 是 | J8: 化学工程与技术 | K8: 统考
A9: 6 | B9: 114144165347472 | C9: 王梓洲 | D9: 83.57 | E9: 82.29 | F9: 83.19 | G9: 305 | H9: 67.66 | I9: 是 | J9: 化学工程与技术 | K9: 统考
A10: 7 | B10: 114144137155106 | C10: 陈雪 | D10: 82.29 | E10: 82.29 | F10: 82.29 | G10: 304 | H10: 67.25 | I10: 是 | J10: 化学工程与技术 | K10: 统考
A11: 8 | B11: 114144113473026 | C11: 陈晓倩 | D11: 83.29 | E11: 82.86 | F11: 83.16 | G11: 302 | H11: 67.23 | I11: 是 | J11: 化学工程与技术 | K11: 统考
A13: 备注：如果排名靠前的考生放弃或失去拟录取资格，按照候补名单的顺序依次递补。

Sheet 提高采收率-专硕
A1: 化学工程与环境学院2024级全日制专业学位硕士研究生复试成绩汇总暨拟录取名单统计表
A2: 复试小组名称：提高采收率组（专业型）
A3: 序号 | B3: 考生编号 | C3: 姓名 | D3: 面试专业成绩 | E3: 面试英语成绩 | F3: 复试成绩 | G3: 初试成绩 | H3: 总成绩 | I3: 是否拟录取 | J3: 拟录取专业 | K3: 考生来源(推免/统考)
A4: 1 | B4: 114144137175190 | C4: 唐传坤 | D4: 82.43 | E4: 81.00 | F4: =(D4*0.7+E4*0.3) -> 82.00 | G4: 333 | H4: =(G4/5)*0.7+F4*0.3 -> 71.22 | I4: 是 | J4: 化学工程 | K4: 统考
A5: 2 | B5: 114144137074846 | C5: 李志林 | D5: 84.71 | E5: 84.14 | F5: 84.54 | G5: 328 | H5: 71.28 | I5: 是 | J5: 化学工程 | K5: 统考
A6: 3 | B6: 114144165347469 | C6: 王瑞琪 | D6: 84.71 | E6: 85.00 | F6: 84.80 | G6: 317 | H6: 69.82 | I6: 是 | J6: 化学工程 | K6: 统考
A7: 4 | B7: 114144151146273 | C7: 孙福华 | D7: 82.29 | E7: 83.00 | F7: 82.50 | G7: 316 | H7: 68.99 | I7: 是 | J7: 化学工程 | K7: 统考
A8: 5 | B8: 114144137024565 | C8: 李进 | D8: 83.14 | E8: 82.71 | F8: 83.01 | G8: 315 | H8: 69.00 | I8: 是 | J8: 化学工程 | K8: 统考
A9: 6 | B9: 114144111641976 | C9: 郑同 | D9: 83.71 | E9: 83.29 | F9: 83.59 | G9: 315 | H9: 69.18 | I9: 是 | J9: 化学工程 | K9: 统考
A10: 7 | B10: 114144113092654 | C10: 李倬垚 | D10: 81.43 | E10: 82.43 | F10: 81.73 | G10: 314 | H10: 68.48 | I10: 是 | J10: 化学工程 | K10: 统考
A11: 8 | B11: 114144134244251 | C11: 任磊 | D11: 71.14 | E11: 71.29 | F11: 71.19 | G11: 320 | H11: 66.16 | I11: 候补 | K11: 统考
A12: 9 | B12: 114144137175194 | C12: 杨潇 | D12: 72.00 | E12: 71.14 | F12: 71.74 | G12: 314 | H12: 65.48 | I12: 候补 | K12: 统考
A14: 备注：如果排名靠前的考生放弃或失去拟录取资格，按照候补名单的顺序依次递补。

Sheet 环境科学与工程-学硕
A1: 化学工程与环境学院2024级全日制硕士研究生复试成绩汇总暨拟录取名单统计表
A2: 复试小组名称： 环境科学与工程（学术型）
A3: 序号 | B3: 考生编号 | C3: 姓名 | D3: 面试专业成绩 | E3: 面试英语成绩 | F3: 复试成绩 | G3: 初试成绩 | H3: 总成绩 | I3: 是否拟录取 | J3: 拟录取专业 | K3: 考生来源(推免/统考)
A4: 1 | B4: 114144111642099 | C4: 李佩河 | D4: 79.17 | E4: 86.33 | F4: 81.32 | G4: 379 | H4: 77.46 | I4: 是 | J4: 环境科学与工程 | K4: 统考
A5: 2 | B5: 114144111641447 | C5: 陈梦凡 | D5: 82.67 | E5: 80.00 | F5: 81.87 | G5: 376 | H5: 77.20 | I5: 是 | J5: 环境科学与工程 | K5: 统考
A6: 3 | B6: 114144137064794 | C6: 高洁云 | D6: 86.00 | E6: 91.33 | F6: 87.60 | G6: 376 | H6: 78.92 | I6: 是 | J6: 环境科学与工程 | K6: 统考
A7: 4 | B7: 114144132163992 | C7: 屈嘉琦 | D7: 83.67 | E7: 83.00 | F7: 83.47 | G7: 375 | H7: 77.54 | I7: 是 | J7: 环境科学与工程 | K7: 统考
A8: 5 | B8: 114144111641886 | C8: 王一达 | D8: 83.50 | E8: 78.33 | F8: 81.95 | G8: 370 | H8: 76.39 | I8: 是 | J8: 环境科学与工程 | K8: 统考
A9: 6 | B9: 114144111641460 | C9: 杨子骏 | D9: 83.83 | E9: 84.67 | F9: 84.08 | G9: 354 | H9: 74.79 | I9: 是 | J9: 环境科学与工程 | K9: 统考
A10: 7 | B10: 114144114153241 | C10: 白晋龙 | D10: 83.83 | E10: 77.50 | F10: 81.93 | G10: 351 | H10: 73.72 | I10: 是 | J10: 环境科学与工程 | K10: 统考
A11: 8 | B11: 114144162046780 | C11: 朱天福 | D11: 84.00 | E11: 85.83 | F11: 84.55 | G11: 350 | H11: 74.37 | I11: 是 | J11: 环境科学与工程 | K11: 统考
A12: 9 | B12: 114144137074858 | C12: 苑旭阳 | D12: 82.50 | E12: 80.00 | F12: 81.75 | G12: 346 | H12: 72.97 | I12: 是 | J12: 环境科学与工程 | K12: 统考
A13: 10 | B13: 114144111641879 | C13: 付柯旭 | D13: 78.33 | E13: 82.83 | F13: 79.68 | G13: 335 | H13: 70.81 | I13: 是 | J13: 环境科学与工程 | K13: 统考
A14: 11 | B14: 114144143025864 | C14: 王明岩 | D14: 82.67 | E14: 77.50 | F14: 81.12 | G14: 334 | H14: 71.10 | I14: 是 | J14: 环境科学与工程 | K14: 统考
A15: 12 | B15: 114144141055297 | C15: 张姿 | D15: 85.33 | E15: 85.00 | F15: 85.23 | G15: 329 | H15: 71.63 | I15: 是 | J15: 环境科学与工程 | K15: 统考
A16: 13 | B16: 114144112012276 | C16: 许渤笛 | D16: 87.33 | E16: 86.00 | F16: 86.93 | G16: 327 | H16: 71.86 | I16: 是 | J16: 环境科学与工程 | K16: 统考
A17: 14 | B17: 114144151836370 | C17: 张旋 | D17: 81.00 | E17: 68.33 | F17: 77.20 | G17: 322 | H17: 68.24 | I17: 是 | J17: 环境科学与工程 | K17: 统考
A18: 15 | B18: 114144121103510 | C18: 杨浩博 | D18: 85.83 | E18: 82.50 | F18: 84.83 | G18: 314 | H18: 69.41 | I18: 是 | J18: 环境科学与工程 | K18: 统考
A19: 16 | B19: 114144113392950 | C19: 范欣瑶 | D19: 81.17 | E19: 79.17 | F19: 80.57 | G19: 312 | H19: 67.85 | I19: 是 | J19: 环境科学与工程 | K19: 统考
A20: 17 | B20: 114144111641880 | C20: 冯浩宇 | D20: 81.67 | E20: 70.83 | F20: 78.42 | G20: 306 | H20: 66.37 | I20: 是 | J20: 环境科学与工程 | K20: 统考
A21: 18 | B21: 114144114073164 | C21: 柴鑫 | D21: 79.83 | E21: 85.83 | F21: 81.63 | G21: 300 | H21: 66.49 | I21: 是 | J21: 环境科学与工程 | K21: 统考
A22: 19 | B22: 114144111641801 | C22: 王敬娴 | D22: 85.50 | E22: 79.17 | F22: 83.60 | G22: 299 | H22: 66.94 | I22: 是 | J22: 环境科学与工程 | K22: 统考
A23: 20 | B23: 114144162066794 | C23: 赵冉浩 | D23: 80.83 | E23: 74.17 | F23: 78.83 | G23: 296 | H23: 65.09 | I23: 是 | J23: 环境科学与工程 | K23: 统考
A24: 21 | B24: 114144152056397 | C24: 杜晓凡 | D24: 79.17 | E24: 82.17 | F24: 80.07 | G24: 294 | H24: 65.18 | I24: 是 | J24: 环境科学与工程 | K24: 统考
A25: 22 | B25: 114144113302875 | C25: 张琪 | D25: 87.83 | E25: 78.33 | F25: 84.98 | G25: 294 | H25: 66.66 | I25: 是 | J25: 环境科学与工程 | K25: 统考
A26: 23 | B26: 114144123063723 | C26: 吴睿 | D26: 85.50 | E26: 83.50 | F26: 84.90 | G26: 292 | H26: 66.35 | I26: 是 | J26: 环境科学与工程 | K26: 统考
A27: 24 | B27: 114144111641651 | C27: 安雪娇 | D27: 82.50 | E27: 80.83 | F27: 82.00 | G27: 290 | H27: 65.20 | I27: 是 | J27: 环境科学与工程 | K27: 统考
A28: 25 | B28: 114144113152743 | C28: 张国徽 | D28: 59.00 | E28: 58.33 | F28: 58.80 | G28: 284 | H28: 57.40 | I28: 否
A31: 说明：根据环境科学与工程一志愿考生复试录取情况，经学院招生工作领导小组讨论决定，将2个指标空额调整至化学工程与技术。

Sheet 环境工程-专硕
A1: 化学工程与环境学院2024级全日制专业学位硕士研究生复试成绩汇总暨拟录取名单统计表
A2: 复试小组名称： 环境工程（专业型）
A3: 序号 | B3: 考生编号 | C3: 姓名 | D3: 面试专业成绩 | E3: 面试英语成绩 | F3: 复试成绩 | G3: 初试成绩 | H3: 总成绩 | I3: 是否拟录取 | J3: 拟录取专业 | K3: 考生来源(推免/统考)
A4: 1 | B4: 114144111642157 | C4: 王梦轩 | D4: 79.00 | E4: 79.00 | F4: 79.00 | G4: 384 | H4: 77.46 | I4: 是 | J4: 环境工程 | K4: 统考
A5: 2 | B5: 114144111642146 | C5: 付扬 | D5: 84.20 | E5: 92.00 | F5: 86.54 | G5: 356 | H5: 75.80 | I5: 是 | J5: 环境工程 | K5: 统考
A6: 3 | B6: 114144111642014 | C6: 吴宇坤 | D6: 84.60 | E6: 90.00 | F6: 86.22 | G6: 353 | H6: 75.29 | I6: 是 | J6: 环境工程 | K6: 统考
A7: 4 | B7: 114144141065305 | C7: 王梦茹 | D7: 83.40 | E7: 79.00 | F7: 82.08 | G7: 345 | H7: 72.92 | I7: 是 | J7: 环境工程 | K7: 统考
A8: 5 | B8: 114144111641537 | C8: 高兆增 | D8: 81.20 | E8: 88.00 | F8: 83.24 | G8: 344 | H8: 73.13 | I8: 是 | J8: 环境工程 | K8: 统考
A9: 6 | B9: 114144134064200 | C9: 陈子旭 | D9: 83.20 | E9: 80.00 | F9: 82.24 | G9: 341 | H9: 72.41 | I9: 是 | J9: 环境工程 | K9: 统考
A10: 7 | B10: 114144113302873 | C10: 李军龙 | D10: 78.00 | E10: 83.00 | F10: 79.50 | G10: 337 | H10: 71.03 | I10: 是 | J10: 环境工程 | K10: 统考
A11: 8 | B11: 114144111641734 | C11: 高勤博 | D11: 72.80 | E11: 73.00 | F11: 72.86 | G11: 337 | H11: 69.04 | I11: 是 | J11: 环境工程 | K11: 统考
A12: 9 | B12: 114144111641577 | C12: 邵祺 | D12: 83.20 | E12: 82.00 | F12: 82.84 | G12: 337 | H12: 72.03 | I12: 是 | J12: 环境工程 | K12: 统考
A13: 10 | B13: 114144111641719 | C13: 杨丰硕 | D13: 75.00 | E13: 68.00 | F13: 72.90 | G13: 335 | H13: 68.77 | I13: 是 | J13: 环境工程 | K13: 统考
A14: 11 | B14: 114144113272807 | C14: 吴贺雄 | D14: 86.40 | E14: 92.00 | F14: 88.08 | G14: 330 | H14: 72.62 | I14: 是 | J14: 环境工程 | K14: 统考
A15: 12 | B15: 114144144015959 | C15: 苏少杰 | D15: 76.80 | E15: 86.00 | F15: 79.56 | G15: 324 | H15: 69.23 | I15: 是 | J15: 环境工程 | K15: 统考
A16: 13 | B16: 114144137024593 | C16: 商家博 | D16: 81.40 | E16: 81.00 | F16: 81.28 | G16: 316 | H16: 68.62 | I16: 是 | J16: 环境工程 | K16: 统考
A17: 14 | B17: 114144113392951 | C17: 刘晴 | D17: 78.80 | E17: 78.00 | F17: 78.56 | G17: 316 | H17: 67.81 | I17: 是 | J17: 环境工程 | K17: 统考
A18: 15 | B18: 114144141175431 | C18: 王润博 | D18: 77.00 | E18: 78.00 | F18: 77.30 | G18: 315 | H18: 67.29 | I18: 是 | J18: 环境工程 | K18: 统考
A19: 16 | B19: 114144162186852 | C19: 李济萱 | D19: 78.40 | E19: 80.00 | F19: 78.88 | G19: 305 | H19: 66.36 | I19: 是 | J19: 环境工程 | K19: 统考
A20: 17 | B20: 114144111641424 | C20: 宋奥奇 | D20: 75.80 | E20: 77.00 | F20: 76.16 | G20: 302 | H20: 65.13 | I20: 是 | J20: 环境工程 | K20: 统考
A21: 18 | B21: 114144161476744 | C21: 雒楠 | D21: 76.40 | E21: 68.00 | F21: 73.88 | G21: 300 | H21: 64.16 | I21: 是 | J21: 环境工程 | K21: 统考
A22: 19 | B22: 114144111642161 | C22: 刘家树 | D22: 79.60 | E22: 81.00 | F22: 80.02 | G22: 273 | H22: 62.23 | I22: 是 | J22: 环境工程 | K22: 统考

Sheet 环境工程-非全日制
A1: 化学工程与环境学院2024级非全日制专业学位硕士研究生复试成绩汇总暨拟录取名单统计表
A2: 复试小组名称： 环境工程（专业型）
A3: 序号 | B3: 考生编号 | C3: 姓名 | D3: 面试专业成绩 | E3: 面试英语成绩 | F3: 复试成绩 | G3: 初试成绩 | H3: 总成绩 | I3: 是否拟录取 | J3: 拟录取专业 | K3: 考生来源(推免/统考)
A4: 1 | B4: 114144311641758 | C4: 肖楚才 | D4: 91.20 | E4: 85.00 | F4: 89.34 | G4: 412 | H4: 84.48 | I4: 是 | J4: 环境工程 | K4: 统考

Sheet 工程管理
A1: 化学工程与环境学院2024级非全日制专业学位硕士研究生复试成绩汇总暨拟录取名单统计表
A2: 复试小组名称： 环境工程（专业型）
A3: 序号 | B3: 考生编号 | C3: 姓名 | D3: 面试专业成绩 | E3: 面试英语成绩 | F3: 政治考核 | G3: 复试成绩 | H3: 初试成绩 | I3: 总成绩 | J3: 是否拟录取 | K3: 拟录取专业 | L3: 考生来源(推免/统考)
A4: 1 | B4: 114144111640933 | C4: 何笑天 | D4: 87.80 | E4: 93.00 | F4: 84.00 | G4: 88.98 | H4: 197 | I4: 72.66 | J4: 是 | K4: 工程管理 | L4: 统考
A6: 复试小组名称： 化学工程系（专业型）
A7: 序号 | B7: 考生编号 | C7: 姓名 | D7: 面试专业成绩 | E7: 面试英语成绩 | F7: 政治考核成绩 | G7: 复试成绩 | H7: 初试成绩 | I7: 总成绩 | J7: 是否拟录取 | K7: 拟录取专业 | L7: 考生来源(推免/统考)
A8: 1 | B8: 114144111640688 | C8: 刘淼 | D8: 80.44 | E8: 84.40 | F8: 90.00 | G8: =D8*0.6+E8*0.3+F8*0.1 -> 82.59 | H8: 222 | I8: =H8/3*0.7+G8*0.3 -> 76.58 | J8: 是 | K8: 工程管理 | L8: 统考

Sheet 退役大学生计划
A1: 化学工程与环境学院2024级全日制硕士研究生复试成绩汇总暨拟录取名单统计表
A2: 复试小组名称： 化学工艺系（学术型）
A3: 序号 | B3: 考生编号 | C3: 姓名 | D3: 面试专业成绩 | E3: 面试英语成绩 | F3: 复试成绩 | G3: 初试成绩 | H3: 总成绩 | I3: 是否拟录取 | J3: 拟录取专业 | K3: 考生来源(推免/统考)
A4: 1 | B4: 114144161436722 | C4: 宗雅慧 | D4: 87.00 | E4: 83.20 | F4: 85.86 | G4: 369 | H4: 77.42 | I4: 是 | J4: 化学工程与技术 | K4: 统考
